bitfinex/quotes_BTCUSD_20251113
["timestamp","ask_amount","ask_price","bid_price","bid_amount"]
[1763073941453,0.73536679,99950.0,99949.0,0.00069254]
[1763073942211,0.71966852,99950.0,99949.0,0.00069254]
[1763073946272,0.71866852,99950.0,99949.0,0.00069254]
[1763073947177,2.71866852,99950.0,99949.0,0.00069254]
[1763073947439,2.27457978,99950.0,99949.0,0.00069254]
[1763073947596,2.0,99958.0,99949.0,0.00069254]
[1763073947769,2.0,99958.0,99950.0,0.02735]
[1763073948526,0.323,99957.0,99950.0,0.02735]
[1763073948702,0.14774724,99968.0,99950.0,0.02735]
[1763073948703,2.0,99967.0,99950.0,0.02735]
[1763073949554,0.323,99966.0,99950.0,0.10183]
[1763073949719,0.323,99962.0,99950.0,0.10183]
[1763073949918,2.0,99959.0,99950.0,0.10183]
[1763073950143,0.323,99956.0,99950.0,0.10183]
[1763073950362,0.323,99952.0,99950.0,0.02735]
[1763073950559,2.323,99952.0,99951.0,0.07448]
[1763073951932,0.07928,99982.0,99951.0,0.07448]
[1763073951933,2.0,99978.0,99951.0,0.07448]
[1763073952144,0.323,99975.0,99960.0,0.05007]
[1763073952377,0.323,99971.0,99960.0,0.05007]
[1763073952586,0.323,99969.0,99960.0,0.05007]
[1763073952766,0.323,99967.0,99960.0,0.05007]
[1763073953015,2.0,99964.0,99960.0,0.05007]
[1763073953791,2.0,99964.0,99960.0,0.05107]
[1763073954053,2.0,99964.0,99960.0,0.05007]
[1763073954372,2.0,99964.0,99960.0,0.05207]
[1763073955052,2.0,99964.0,99960.0,0.002]
[1763073955462,0.04988,99961.0,99960.0,0.002]
[1763073955666,2.37288,99961.0,99960.0,0.002]
[1763073956016,2.0,99961.0,99960.0,0.002]
[1763073956231,0.07928,99994.0,99969.0,0.07742]
[1763073956232,2.0,99989.0,99969.0,0.07742]
[1763073956426,2.0,99990.0,99969.0,0.07742]
[1763073957226,0.323,99989.0,99969.0,0.15142]
[1763073957439,2.0,99986.0,99969.0,0.15142]
[1763073957607,2.0,99986.0,99970.0,0.074]
[1763073958039,2.323,99986.0,99985.0,0.02333]
[1763073959301,2.323,99986.0,99985.0,0.02337614]
[1763073959781,2.37288,99986.0,99985.0,4.614e-05]
[1763073961213,2.323,99986.0,99985.0,4.614e-05]
[1763073963405,2.0,99998.0,99985.0,0.04683614]
[1763073963609,2.0,99998.0,99989.0,0.04679]
[1763073964179,2.0,99998.0,99990.0,0.07126]
[1763073965017,0.00146832,99999.0,99990.0,0.07126]
[1763073965632,0.00146832,99999.0,99990.0,0.07226]
[1763073965839,21.2867535,100000.0,99990.0,0.07226]
[1763073966011,21.2867535,100000.0,99990.0,0.07126]
[1763073966391,21.2867535,100000.0,99990.0,0.07226]
[1763073966594,21.2867535,100000.0,99990.0,0.07326]
[1763073966804,21.2867535,100000.0,99990.0,0.07226]
[1763073967124,19.2867535,100000.0,99990.0,0.07226]
[1763073967325,19.2867535,100000.0,99990.0,0.07326]
[1763073967487,19.10151917,100000.0,99990.0,0.07226]
[1763073967865,19.10151917,100000.0,99990.0,0.07326]
[1763073968949,19.10151917,100000.0,99990.0,0.07126]
[1763073969288,19.10151917,100000.0,99990.0,0.07526]
[1763073969516,19.10151917,100000.0,99990.0,0.07326]
[1763073969921,21.10151917,100000.0,99991.0,0.02091]
[1763073970317,21.10151917,100000.0,99991.0,0.07074]
[1763073971646,21.10151917,100000.0,99991.0,0.02091]
[1763073971817,21.10151917,100000.0,99991.0,0.003]
[1763073972025,21.10151917,100000.0,99991.0,0.001]
[1763073972026,0.0859495,99992.0,99991.0,0.001]
[1763073972380,0.0859495,99992.0,99991.0,0.003]
[1763073972584,2.0859495,99992.0,99991.0,0.001]
[1763073973021,2.0859495,99992.0,99991.0,0.002]
[1763073973231,2.4089495,99992.0,99991.0,0.001]
[1763073973464,0.323,99991.0,99985.0,4.614e-05]
[1763073973620,2.3728,99986.0,99985.0,4.614e-05]
[1763073975247,2.3728,99986.0,99985.0,0.00104614]
[1763073975451,2.3728,99986.0,99985.0,4.614e-05]
[1763073978919,2.61624674,99986.0,99985.0,4.614e-05]
[1763073980475,2.7147301,99986.0,99985.0,4.614e-05]
[1763073980667,2.9592301,99986.0,99985.0,4.614e-05]
[1763073980830,2.86074674,99986.0,99985.0,4.614e-05]
[1763073982648,0.2000479,99977.0,99940.0,0.02091]
[1763073982849,2.08337,99950.0,99949.0,0.00069254]
[1763073983272,2.40637,99950.0,99949.0,0.00069254]
[1763073984290,2.41968166,99950.0,99949.0,0.00169254]
[1763073984715,2.4631004,99950.0,99949.0,0.00269254]
[1763073985125,2.4631004,99950.0,99949.0,0.00069254]
[1763073990177,2.4631004,99950.0,99949.0,2.54e-06]
[1763073990370,2.4631004,99950.0,99898.0,0.02091]
[1763073990371,0.323,99924.0,99898.0,0.02091]
[1763073990619,0.323,99920.0,99898.0,0.02091]
[1763073990837,0.0004623,99924.0,99898.0,0.02091]
[1763073990838,0.323,99916.0,99898.0,0.02091]
[1763073991060,0.22396432,99923.0,99898.0,0.02091]
[1763073991061,2.0,99913.0,99898.0,0.02091]
[1763073991293,0.323,99910.0,99890.0,0.0004]
[1763073991517,2.0,99907.0,99890.0,0.0004]
[1763073991944,2.0,99907.0,99898.0,0.001]
[1763073992157,0.06795,99906.0,99890.0,0.0004]
[1763073992376,2.0,99905.0,99890.0,0.0004]
[1763073992601,0.323,99908.0,99890.0,0.0004]
[1763073992602,0.323,99903.0,99890.0,0.0004]
[1763073992813,0.08318,99891.0,99890.0,0.0004]
[1763073993304,0.08318,99891.0,99890.0,0.00190962]
[1763073993550,0.08318,99891.0,99890.0,0.00290962]
[1763073993735,2.08318,99891.0,99890.0,0.00290962]
[1763073993958,2.40664201,99891.0,99890.0,0.00490962]
[1763073994149,2.40664201,99891.0,99890.0,0.00390962]
[1763073994401,2.40664201,99891.0,99890.0,0.00590962]
[1763073995245,2.40664201,99891.0,99890.0,0.00390962]
[1763073995687,2.40664201,99891.0,99890.0,0.00190962]
[1763073996128,2.40664201,99891.0,99890.0,0.00290962]
[1763073996326,2.45006075,99891.0,99890.0,0.00290962]
[1763073996536,2.45006075,99891.0,99890.0,0.00390962]
[1763073997301,2.45006075,99891.0,99890.0,0.00190962]
[1763073997673,2.45006075,99891.0,99890.0,0.00290962]
[1763073998827,2.45006075,99891.0,99890.0,0.00190962]
[1763073998828,2.53443243,99891.0,99890.0,0.00190962]
[1763073999179,0.20025667,99872.0,99870.0,0.0004]
[1763073999378,0.36641874,99890.0,99870.0,0.0004]
[1763073999379,2.43740874,99871.0,99870.0,0.0004]
[1763073999760,2.63766707,99871.0,99870.0,0.0004]
[1763074000379,2.63766707,99871.0,99870.0,0.0014]
[1763074000790,2.63766707,99871.0,99870.0,0.0004]
[1763074001082,2.65337669,99871.0,99870.0,0.0004]
[1763074002407,2.45311836,99871.0,99870.0,0.0004]
[1763074002828,2.43740874,99871.0,99870.0,0.0004]
[1763074005060,2.5358921,99871.0,99870.0,0.0004]
[1763074005267,0.04341874,99860.0,99810.0,0.0004]
[1763074005465,2.64989718,99851.0,99810.0,0.0004]
[1763074006490,2.65035891,99851.0,99810.0,0.0004]
[1763074006700,2.5233185,99841.0,99810.0,0.0004]
[1763074006901,2.61488724,99841.0,99810.0,0.0004]
[1763074007127,2.6281547,99841.0,99810.0,0.0004]
[1763074008153,0.04341874,99814.0,99810.0,0.0004]
[1763074008372,2.93233874,99811.0,99810.0,0.0004]
[1763074008594,2.43233874,99811.0,99810.0,0.0004]
[1763074009242,2.53128354,99811.0,99810.0,0.0004]
[1763074009443,2.43280018,99811.0,99810.0,0.0014]
[1763074010079,2.38938144,99811.0,99810.0,0.0014]
[1763074010275,2.38938144,99811.0,99810.0,0.0004]
[1763074010553,2.38938144,99811.0,99810.0,0.00244919]
[1763074010554,1.83690057,99811.0,99810.0,0.00244919]
[1763074010692,1.83690057,99811.0,99810.0,0.11644919]
[1763074010895,1.83690057,99811.0,99810.0,0.06930919]
[1763074011111,0.00046144,99811.0,99810.0,0.00244919]
[1763074012612,0.00046144,99811.0,99810.0,0.00444919]
[1763074013255,0.00046144,99811.0,99810.0,0.00644919]
[1763074014856,2.37161144,99811.0,99810.0,0.00644919]
[1763074015387,2.37161144,99811.0,99810.0,0.00444919]
[1763074015593,2.37161144,99811.0,99810.0,0.00244919]
[1763074016004,2.37161144,99811.0,99810.0,0.00444919]
[1763074016216,2.37161144,99811.0,99810.0,0.00244919]
[1763074016542,2.37161144,99811.0,99810.0,0.00444919]
[1763074017121,2.41503018,99811.0,99810.0,0.00444919]
[1763074017556,2.41503018,99811.0,99810.0,0.00344919]
[1763074017762,2.41503018,99811.0,99810.0,0.00444919]
[1763074018333,2.37161144,99811.0,99810.0,0.00244919]
[1763074021119,0.00046144,99811.0,99810.0,0.00244919]
[1763074022368,0.00046144,99811.0,99810.0,0.00344919]
[1763074022574,0.00046144,99811.0,99810.0,0.00444919]
[1763074022774,0.00046144,99811.0,99810.0,0.00344919]
[1763074023152,0.00046144,99811.0,99810.0,0.00544919]
[1763074023565,0.00046144,99811.0,99810.0,0.00444919]
[1763074023959,0.00046144,99811.0,99810.0,0.00644919]
[1763074024509,0.00046144,99811.0,99810.0,0.00244919]
[1763074024656,0.00046144,99811.0,99810.0,0.00544919]
[1763074024862,0.00046144,99811.0,99810.0,0.00844919]
[1763074025888,0.00046144,99811.0,99810.0,0.02844919]
[1763074026094,0.00046144,99811.0,99810.0,0.07186793]
[1763074027519,0.00046144,99811.0,99810.0,0.00844919]
[1763074029668,0.00046144,99811.0,99810.0,0.17746793]
[1763074029873,0.00046144,99811.0,99810.0,0.05186793]
[1763074030491,0.00046144,99811.0,99810.0,0.04886793]
[1763074030917,0.00046144,99811.0,99810.0,0.04586793]
[1763074031314,0.00046144,99811.0,99810.0,0.05186793]
[1763074031550,0.00046144,99811.0,99810.0,0.04886793]
[1763074031765,0.00046144,99811.0,99810.0,0.05286793]
[1763074032720,0.00046144,99811.0,99810.0,0.04586793]
[1763074032921,0.00046144,99811.0,99810.0,0.05386793]
[1763074033295,0.00046144,99811.0,99810.0,0.04986793]
[1763074033694,0.00046144,99811.0,99810.0,0.05386793]
[1763074033871,0.00046144,99811.0,99810.0,0.07386793]
[1763074034077,0.00046144,99811.0,99810.0,0.05386793]
[1763074036487,0.00046144,99811.0,99810.0,0.07386793]
[1763074036690,0.00046144,99811.0,99810.0,0.01044919]
[1763074037059,0.00046144,99811.0,99810.0,0.00644919]
[1763074037261,0.00046144,99811.0,99810.0,0.00244919]
[1763074037462,0.00046144,99811.0,99810.0,0.00844919]
[1763074037625,0.00046144,99811.0,99810.0,0.00544919]
[1763074038139,0.00046144,99811.0,99810.0,0.00844919]
[1763074038339,0.00046144,99811.0,99810.0,0.00544919]
[1763074038543,0.00046144,99811.0,99810.0,0.07042919]
[1763074038744,0.00046144,99811.0,99810.0,0.07242919]
[1763074039009,0.00046144,99811.0,99810.0,0.07342919]
[1763074039344,0.00046144,99811.0,99810.0,0.09042919]
[1763074039763,0.00046144,99811.0,99810.0,0.02244919]
[1763074039978,0.00046144,99811.0,99810.0,0.02444919]
[1763074040154,0.00046144,99811.0,99810.0,0.02644919]
[1763074040370,0.00046144,99811.0,99810.0,0.06586793]
[1763074040576,0.00046144,99811.0,99810.0,0.06886793]
[1763074040838,0.00046144,99811.0,99810.0,0.07186793]
[1763074041603,0.00046144,99811.0,99810.0,0.06886793]
[1763074041932,0.00046144,99811.0,99810.0,0.06986793]
[1763074042160,0.00046144,99811.0,99810.0,0.07286793]
[1763074042533,0.00046144,99811.0,99810.0,0.06986793]
[1763074042882,0.00046144,99811.0,99810.0,0.07386793]
[1763074043098,0.00046144,99811.0,99810.0,0.05386793]
[1763074044781,2.08016,99871.0,99821.0,0.04341874]
[1763074044996,2.0,99870.0,99821.0,0.04341874]
[1763074045195,2.06308,99870.0,99823.0,0.04341874]
[1763074045399,2.0,99868.0,99822.0,0.06798]
[1763074045607,2.0,99868.0,99823.0,0.04341874]
[1763074045807,0.06308,99867.0,99823.0,0.04341874]
[1763074046043,2.0,99866.0,99824.0,0.06798]
[1763074046852,0.323,99863.0,99824.0,0.06798]
[1763074047051,0.323,99859.0,99824.0,0.06898]
[1763074047284,2.0,99870.0,99840.0,0.02254]
[1763074047475,0.323,99867.0,99858.0,0.07035]
[1763074047783,2.00005076,99871.0,99870.0,0.04522]
[1763074047970,2.32305076,99871.0,99870.0,0.04522]
[1763074048393,2.0,99870.0,99858.0,0.02513]
[1763074048773,2.0,99870.0,99869.0,0.04522]
[1763074049963,2.0,99870.0,99869.0,0.04622]
[1763074050382,2.0,99870.0,99869.0,0.0467576]
[1763074050866,2.323,99870.0,99869.0,0.0025376]
[1763074051487,2.36439,99870.0,99869.0,0.0025376]
[1763074052192,2.323,99870.0,99869.0,0.0025376]
[1763074053004,0.323,99870.0,99869.0,0.0025376]
[1763074054596,5.076e-05,99871.0,99870.0,0.06165]
[1763074054799,5.076e-05,99871.0,99870.0,0.09512]
[1763074055878,5.076e-05,99871.0,99870.0,0.03447]
[1763074056358,5.076e-05,99871.0,99870.0,0.03547]
[1763074057235,5.076e-05,99871.0,99870.0,0.03347]
[1763074057441,5.076e-05,99871.0,99870.0,0.03547]
[1763074058022,5.076e-05,99871.0,99870.0,0.03647]
[1763074058392,5.076e-05,99871.0,99870.0,0.03947]
[1763074059004,5.076e-05,99871.0,99870.0,0.08288874]
[1763074059243,5.076e-05,99871.0,99870.0,0.07988874]
[1763074059442,5.076e-05,99871.0,99870.0,0.60314907]
[1763074059654,5.076e-05,99871.0,99870.0,0.60614907]
[1763074059864,5.076e-05,99871.0,99870.0,0.60314907]
[1763074060063,1.017e-05,99871.0,99870.0,0.62366106]
[1763074060265,1.017e-05,99871.0,99870.0,0.60366106]
[1763074060466,1.017e-05,99871.0,99870.0,0.60666106]
[1763074060666,1.017e-05,99871.0,99870.0,0.03698199]
[1763074060873,1.017e-05,99871.0,99870.0,0.04098199]
[1763074061057,1.017e-05,99871.0,99870.0,0.03398199]
[1763074061256,1.017e-05,99871.0,99870.0,0.03498199]
[1763074061854,1.017e-05,99871.0,99870.0,0.03398199]
[1763074062169,1.017e-05,99871.0,99870.0,0.03698199]
[1763074062380,1.017e-05,99871.0,99870.0,0.03798199]
[1763074062763,1.017e-05,99871.0,99870.0,0.03698199]
[1763074062973,1.017e-05,99871.0,99870.0,0.03898199]
[1763074063183,1.017e-05,99871.0,99870.0,0.03598199]
[1763074063583,1.017e-05,99871.0,99870.0,0.03798199]
[1763074065973,0.07456017,99871.0,99870.0,0.00451199]
[1763074066381,2.44097891,99871.0,99870.0,0.00451199]
[1763074066836,2.44097891,99871.0,99870.0,0.00051199]
[1763074067248,2.64123724,99871.0,99870.0,0.00251199]
[1763074067796,2.64123724,99871.0,99870.0,0.00051199]
[1763074069892,2.65694853,99871.0,99870.0,0.00051199]
[1763074070304,2.65694853,99871.0,99870.0,1.99e-06]
[1763074070506,2.0,99846.0,99818.0,0.03347]
[1763074070722,0.52331563,99843.0,99818.0,0.03347]
[1763074070851,2.0,99840.0,99818.0,0.03347]
[1763074071252,2.0,99840.0,99812.0,0.03347]
[1763074071253,2.0,99838.0,99812.0,0.03347]
[1763074071490,2.0,99836.0,99812.0,0.03347]
[1763074072000,2.0,99834.0,99818.0,0.001]
[1763074072248,2.0,99834.0,99812.0,0.03356712]
[1763074072490,2.0,99838.0,99833.0,0.00094763]
[1763074072727,2.0,99838.0,99818.0,0.001]
[1763074072953,0.06252,99837.0,99818.0,0.001]
[1763074073188,0.03316,99819.0,99818.0,0.001]
[1763074073418,0.03316,99819.0,99812.0,9.712e-05]
[1763074073419,0.07455,99819.0,99812.0,9.712e-05]
[1763074073655,0.03316,99819.0,99812.0,0.00109712]
[1763074074104,0.03316,99819.0,99812.0,9.712e-05]
[1763074074420,0.06252,99830.0,99818.0,0.002]
[1763074074421,2.0,99830.0,99818.0,0.002]
[1763074075062,2.0,99828.0,99818.0,0.002]
[1763074075274,0.04139,99819.0,99818.0,0.004]
[1763074075492,0.04139,99819.0,99812.0,9.712e-05]
[1763074075730,0.01027,99813.0,99812.0,9.712e-05]
[1763074075941,0.01027,99813.0,99812.0,0.00209712]
[1763074076366,0.01027,99813.0,99812.0,9.712e-05]
[1763074077317,0.01027,99813.0,99812.0,0.00209712]
[1763074077516,2.51027,99813.0,99812.0,0.00209712]
[1763074077733,2.01027,99813.0,99812.0,0.00209712]
[1763074078495,2.01027,99813.0,99812.0,9.712e-05]
[1763074078711,2.01027,99813.0,99812.0,0.0035829]
[1763074078917,2.01027,99813.0,99812.0,0.0055829]
[1763074079226,2.37668874,99813.0,99812.0,0.0035829]
[1763074079460,2.37668874,99813.0,99812.0,0.0055829]
[1763074079837,2.37668874,99813.0,99812.0,0.0035829]
[1763074080243,2.37668874,99813.0,99770.0,0.0004]
[1763074080244,0.28592946,99811.0,99770.0,0.0004]
[1763074080453,2.3391,99801.0,99800.0,0.00086144]
[1763074082263,2.38251874,99801.0,99800.0,0.00086144]
[1763074082675,2.38251874,99801.0,99800.0,0.00186144]
[1763074082882,2.38251874,99801.0,99800.0,0.00286144]
[1763074084172,2.3391,99801.0,99800.0,0.00286144]
[1763074087721,2.35669,99801.0,99800.0,0.00286144]
[1763074090992,2.35669,99801.0,99800.0,0.00316897]
[1763074092453,2.34059,99801.0,99800.0,0.00316897]
[1763074093552,2.3797,99801.0,99800.0,0.00316897]
[1763074098178,2.14094748,99801.0,99800.0,0.00316897]
[1763074100774,2.10183748,99801.0,99800.0,0.00316897]
[1763074102610,2.10183748,99801.0,99800.0,0.00216897]
[1763074103069,2.10183748,99801.0,99800.0,0.00116897]
[1763074103266,2.10183748,99801.0,99800.0,0.00216897]
[1763074103850,2.10183748,99801.0,99800.0,0.00116897]
[1763074104050,2.10183748,99801.0,99800.0,0.00516897]
[1763074104255,2.08424748,99801.0,99800.0,0.06326897]
[1763074105626,2.08424748,99801.0,99800.0,0.00516897]
[1763074112564,0.323,99801.0,99800.0,0.00516897]
[1763074115666,0.323,99829.0,99809.0,0.07191]
[1763074115860,2.0,99818.0,99813.0,0.04147]
[1763074116176,2.0,99814.0,99813.0,0.04147]
[1763074116376,0.03010583,99824.0,99813.0,0.04147]
[1763074116581,2.323,99823.0,99822.0,0.04147]
[1763074116994,2.323,99823.0,99822.0,0.07191]
[1763074117835,2.323,99823.0,99822.0,0.07291]
[1763074118198,2.323,99823.0,99822.0,0.12967]
[1763074118403,2.323,99823.0,99822.0,0.03144]
[1763074118656,2.323,99823.0,99822.0,0.03044]
[1763074118797,2.323,99823.0,99822.0,0.03244]
[1763074119000,0.2445,99839.0,99831.0,0.07191]
[1763074119001,2.0,99835.0,99831.0,0.07191]
[1763074119278,0.2445,99839.0,99831.0,0.07191]
[1763074119279,2.0,99838.0,99831.0,0.03044]
[1763074119436,2.0,99838.0,99832.0,0.05676]
[1763074119620,0.323,99835.0,99832.0,0.05676]
[1763074119815,0.323,99833.0,99832.0,0.05676]
[1763074120261,0.323,99833.0,99832.0,0.05689865]
[1763074120690,2.323,99833.0,99832.0,0.00013865]
[1763074121087,2.323,99833.0,99832.0,0.00213865]
[1763074121615,2.323,99833.0,99832.0,0.00313865]
[1763074121925,2.323,99833.0,99832.0,0.00213865]
[1763074122753,2.323,99833.0,99832.0,0.00413865]
[1763074124143,0.03009861,99844.0,99832.0,0.00413865]
[1763074124346,2.0,99838.0,99833.0,0.05676]
[1763074124500,0.323,99839.0,99833.0,0.05676]
[1763074124711,0.0300968,99849.0,99833.0,0.05676]
[1763074124906,0.323,99839.0,99833.0,0.05676]
[1763074125124,0.323,99837.0,99833.0,0.05676]
[1763074126032,0.0300968,99852.0,99833.0,0.05776]
[1763074126245,2.0,99840.0,99833.0,0.05776]
[1763074126630,2.0,99840.0,99833.0,0.05876]
[1763074126862,2.0,99840.0,99833.0,0.05776]
[1763074127249,2.0,99840.0,99833.0,0.05876]
[1763074127602,1.81764089,99840.0,99833.0,0.05776]
[1763074127804,2.0,99840.0,99833.0,0.05976]
[1763074128120,0.323,99850.0,99833.0,0.05876]
[1763074128319,0.323,99850.0,99833.0,0.06076]
[1763074128649,0.01220544,99857.0,99833.0,0.06076]
[1763074128959,0.01220544,99857.0,99833.0,0.05876]
[1763074129160,0.323,99856.0,99833.0,0.06076]
[1763074129391,0.323,99856.0,99833.0,0.05876]
[1763074129597,0.323,99856.0,99833.0,0.06076]
[1763074130095,0.01222,99851.0,99833.0,0.06076]
[1763074130456,0.51222,99851.0,99833.0,0.06076]
[1763074133412,0.5,99851.0,99833.0,0.06076]
[1763074133612,0.03009608,99855.0,99833.0,0.06076]
[1763074134167,0.35309608,99855.0,99833.0,0.06076]
[1763074135606,0.03009608,99855.0,99833.0,0.06076]
[1763074136203,0.323,99855.0,99833.0,0.06076]
[1763074136434,0.35309608,99855.0,99833.0,0.06076]
[1763074137427,0.03009608,99855.0,99833.0,0.06076]
[1763074137632,0.33482856,99861.0,99833.0,0.06076]
[1763074137835,0.03009608,99857.0,99833.0,0.06076]
[1763074138194,0.323,99863.0,99833.0,0.06076]
[1763074138395,0.03009442,99861.0,99833.0,0.06076]
[1763074138595,0.323,99861.0,99833.0,0.06076]
[1763074138828,0.323,99861.0,99840.0,0.02]
[1763074139032,0.323,99861.0,99833.0,0.05876]
[1763074139235,0.323,99861.0,99840.0,0.02]
[1763074139654,0.00017631,99841.0,99840.0,0.26179051]
[1763074139997,0.00017631,99841.0,99840.0,0.24373925]
[1763074140673,0.00017631,99841.0,99840.0,0.24673925]
[1763074140903,0.00017631,99841.0,99840.0,0.24973925]
[1763074142155,0.00017631,99841.0,99840.0,0.26673925]
[1763074142366,0.00017631,99841.0,99840.0,0.06641874]
[1763074142639,0.00017631,99841.0,99840.0,0.003]
[1763074143096,0.00017631,99841.0,99840.0,0.006]
[1763074143314,0.00017631,99841.0,99835.0,0.05907]
[1763074143535,0.00017631,99841.0,99840.0,0.003]
[1763074143746,0.00017631,99841.0,99840.0,0.006]
[1763074143944,0.00017631,99841.0,99840.0,0.003]
[1763074144355,0.00017631,99841.0,99840.0,0.005]
[1763074144972,0.00017631,99841.0,99840.0,0.002]
[1763074145355,0.00017631,99841.0,99840.0,0.005]
[1763074145962,0.00017631,99841.0,99840.0,0.06407]
[1763074146535,0.00017631,99841.0,99840.0,0.06207]
[1763074146732,0.00017631,99841.0,99840.0,0.002]
[1763074147393,0.00017631,99841.0,99832.0,0.00013865]
[1763074147593,0.323,99839.0,99832.0,0.00013865]
[1763074148058,0.00017631,99841.0,99832.0,0.00013865]
[1763074148257,0.323,99837.0,99832.0,0.00013865]
[1763074148457,0.323,99835.0,99832.0,0.00013865]
[1763074148659,2.37953,99833.0,99832.0,0.00013865]
[1763074148917,2.37953,99833.0,99832.0,0.00313865]
[1763074149275,2.37953,99833.0,99832.0,0.00013865]
[1763074149481,2.37953,99833.0,99832.0,0.00213865]
[1763074149859,2.37953,99833.0,99832.0,0.00013865]
[1763074150739,2.37953,99833.0,99832.0,0.00213865]
[1763074151324,2.37953,99833.0,99832.0,0.00013865]
[1763074151517,2.37953,99833.0,99832.0,0.00113865]
[1763074151713,2.37953,99833.0,99832.0,0.00313865]
[1763074152948,2.323,99833.0,99832.0,0.00313865]
[1763074154028,2.323,99833.0,99832.0,0.00213865]
[1763074154029,2.0,99833.0,99832.0,0.00213865]
[1763074154245,2.0,99840.0,99833.0,0.05435]
[1763074154656,0.00017631,99841.0,99833.0,0.05435]
[1763074155511,0.00017631,99841.0,99833.0,0.05635]
[1763074155713,0.00017631,99841.0,99833.0,0.05435]
[1763074155925,0.00017631,99841.0,99833.0,0.05635]
[1763074156137,0.00017631,99841.0,99833.0,0.05835]
[1763074156346,0.00017631,99841.0,99833.0,0.05635]
[1763074156550,2.685e-05,99841.0,99833.0,0.05635]
[1763074156778,2.685e-05,99841.0,99833.0,0.05835]
[1763074158941,2.685e-05,99841.0,99833.0,0.05435]
[1763074159166,2.685e-05,99841.0,99833.0,0.05635]
[1763074159387,2.685e-05,99841.0,99833.0,0.05835]
[1763074166698,2.0,99848.0,99842.0,0.06389]
[1763074167112,2.0,99848.0,99843.0,0.05435]
[1763074167313,0.030093,99849.0,99843.0,0.05435]
[1763074167514,0.323,99855.0,99843.0,0.05435]
[1763074167741,0.323,99853.0,99843.0,0.05435]
[1763074167945,0.03009303,99856.0,99843.0,0.05435]
[1763074168103,0.323,99852.0,99843.0,0.05435]
[1763074168452,0.323,99850.0,99843.0,0.05435]
[1763074168656,0.323,99850.0,99843.0,0.05535]
[1763074168993,0.35309303,99850.0,99843.0,0.05535]
[1763074169194,0.35309303,99850.0,99843.0,0.05635]
[1763074169436,0.03009303,99850.0,99843.0,0.05735]
[1763074169637,0.03009303,99850.0,99843.0,0.05535]
[1763074170730,0.03009303,99850.0,99843.0,0.05435]
[1763074170954,0.03009303,99850.0,99843.0,0.05735]
[1763074172383,2.0,99849.0,99843.0,0.05735]
[1763074173674,2.0,99849.0,99843.0,0.05635]
[1763074173907,2.0,99849.0,99843.0,0.05435]
[1763074174246,0.0300939,99848.0,99843.0,0.05835]
[1763074175060,0.0300939,99848.0,99843.0,0.05635]
[1763074175785,0.0300939,99848.0,99843.0,0.05835]
[1763074176191,0.0300939,99848.0,99843.0,0.004]
[1763074176612,0.01379029,99848.0,99843.0,0.004]
[1763074176837,0.01379029,99848.0,99847.0,0.03702]
[1763074177048,2.0,99849.0,99847.0,0.03702]
[1763074177885,2.0,99849.0,99847.0,0.03902]
[1763074178107,2.0,99849.0,99847.0,0.004]
[1763074178309,0.00023046,99850.0,99848.0,0.05261]
[1763074178511,0.00023046,99850.0,99848.0,0.08123]
[1763074180455,0.00023046,99850.0,99848.0,0.08323]
[1763074180660,0.00023046,99850.0,99848.0,0.08423]
[1763074180866,0.323,99849.0,99848.0,0.003]
[1763074181736,0.323,99849.0,99848.0,0.002]
[1763074182155,0.323,99849.0,99842.0,0.02755]
[1763074182589,0.323,99849.0,99843.0,0.05261]
[1763074183234,0.323,99849.0,99848.0,0.002]
[1763074183435,0.323,99849.0,99848.0,0.004]
[1763074183647,0.323,99849.0,99842.0,0.02755]
[1763074183854,0.323,99849.0,99843.0,0.004]
[1763074184293,0.323,99849.0,99843.0,0.05461]
[1763074184729,0.00023046,99850.0,99848.0,0.002]
[1763074184964,2.0,99890.0,99860.0,0.02]
[1763074185177,2.0,99878.0,99860.0,0.02]
[1763074185393,0.323,99873.0,99861.0,0.08123]
[1763074185629,2.0,99872.0,99861.0,0.08123]
[1763074185847,2.0,99872.0,99861.0,0.02862]
[1763074186050,2.0,99872.0,99871.0,0.06564]
[1763074186266,2.0,99883.0,99871.0,0.06564]
[1763074186472,2.0,99896.0,99883.0,0.02862]
[1763074186680,0.323,99885.0,99883.0,0.02862]
[1763074186896,2.323,99884.0,99883.0,0.02862]
[1763074187315,2.323,99884.0,99883.0,0.02873545]
[1763074187756,2.323,99884.0,99883.0,0.02973545]
[1763074187966,0.01159998,99896.0,99892.0,0.02862]
[1763074188225,2.03008364,99893.0,99892.0,0.02862]
[1763074188452,2.323,99892.0,99884.0,0.05261]
[1763074188660,0.323,99888.0,99884.0,0.05261]
[1763074189744,0.323,99892.0,99884.0,0.05261]
[1763074189952,0.323,99890.0,99884.0,0.05261]
[1763074190163,0.323,99888.0,99884.0,0.05261]
[1763074190587,0.323,99888.0,99884.0,0.05461]
[1763074190818,0.03008105,99899.0,99884.0,0.05361]
[1763074191031,0.323,99895.0,99884.0,0.05461]
[1763074191184,0.00089595,99885.0,99884.0,0.05461]
[1763074191382,0.00089595,99885.0,99884.0,0.05361]
[1763074191590,0.00089595,99885.0,99884.0,0.05561]
[1763074192097,0.00089595,99885.0,99884.0,0.05461]
[1763074192446,0.00089595,99885.0,99884.0,0.05561]
[1763074192789,0.00089595,99885.0,99883.0,0.02873545]
[1763074192790,2.00089595,99885.0,99883.0,0.02873545]
[1763074192969,2.0,99893.0,99883.0,0.00011545]
[1763074193146,2.0,99893.0,99884.0,0.002]
[1763074193330,2.0,99893.0,99884.0,0.001]
[1763074193530,2.0,99893.0,99883.0,0.00011545]
[1763074193726,2.0,99893.0,99884.0,0.002]
[1763074193969,2.0,99894.0,99883.0,0.00111545]
[1763074194346,2.0,99894.0,99884.0,0.001]
[1763074195770,2.0,99894.0,99883.0,0.00011545]
[1763074196228,2.0,99894.0,99883.0,0.00111545]
[1763074196449,2.0,99894.0,99883.0,0.00011545]
[1763074196583,2.0,99894.0,99884.0,0.05261]